[Event "FIDE WCCC Open-10 2024"]
[Site "Montesilvano"]
[Date "2024.11.24"]
[Round "9.10"]
[White "Thorulsley, Kairaav"]
[Black "Barsov, Mikhail"]
[Result "0-1"]
[Annotator "NA RC"]
[ECO "D00"]
[WhiteElo "1520"]
[BlackElo "1668"]
[PlyCount "117"]
[EventDate "2024.11.18"]
[EventType "swiss"]
[EventCountry "ITA"]
[SourceTitle "playchess.com"]
[Source "ChessBase"]
[SourceQuality "1"]
[TimeControl "5400+30"]

1. d4 {[%emt 0:00:02]} d5 {[%emt 0:00:02]} 2. Nc3 {[%emt 0:00:06]} Nf6 {[%emt 0:00:03]} 3. Bf4 {[%emt 0:00:04]} e6 {[%emt 0:00:13]} 4. e3 {[%emt 0:00:11]} Bb4 {[%emt 0:00:04]} 5. Bd3 {[%emt 0:00:13]} c5 {[%emt 0:00:11]} 6. dxc5 {[%emt 0:00:57]} Nbd7 {[%emt 0:00:09]} 7. Nge2 {[%emt 0:24:30]} a6 {[%emt 0:00:28]} 8. a3 {[%emt 0:03:06]} Bxc5 {[%emt 0:02:35]} 9. Bg5 {[%emt 0:02:48]} h6 {[%emt 0:07:02]} 10. Bxf6 {[%emt 0:01:00]} Nxf6 {[%emt 0:00:15]} 11. O-O {[%emt 0:02:41]} O-O {[%emt 0:03:27]} 12. Nf4 {[%emt 0:03:41]} b5 {[%emt 0:04:46]} 13. Qd2 {[%emt 0:16:46]} Bb7 {[%emt 0:02:47]} 14. Nfe2 {[%emt 0:00:41]} e5 {[%emt 0:12:53]} 15. Ng3 {[%emt 0:01:09]} Qc7 {[%emt 0:03:19]} 16. e4 {[%emt 0:12:11]} d4 {[%emt 0:00:41]} 17. Nce2 {[%emt 0:00:48]} Rfe8 {[%emt 0:00:55]} 18. Kh1 {[%emt 0:11:24]} Rad8 {[%emt 0:03:43]} 19. f3 {[%emt 0:01:09]} Bf8 {[%emt 0:03:44]} 20. Nf5 {[%emt 0:02:56]} Nd7 {[%emt 0:08:50]} 21. Rac1 {[%emt 0:03:21]} Nc5 {[%emt 0:06:30]} 22. Kg1 {[%emt 0:04:16]} Kh7 {[%emt 0:04:51]} 23. Rfd1 {[%emt 0:02:46]} g6 {[%emt 0:00:31]} 24. Nfg3 {[%emt 0:00:04]} Be7 {[%emt 0:00:39]} 25. Rb1 {[%emt 0:02:11]} Bg5 {[%emt 0:01:22]} 26. Qe1 {[%emt 0:00:13]} Kg7 {[%emt 0:01:48]} 27. Kh1 {[%emt 0:00:50]} h5 {[%emt 0:02:23]} 28. Nf1 {[%emt 0:00:31]} h4 {[%emt 0:01:28]} 29. h3 {[%emt 0:00:10]} Rh8 {[%emt 0:04:01]} 30. Nh2 {[%emt 0:01:11]} Bc8 {[%emt 0:01:45]} 31. Nf1 {[%emt 0:00:45]} Be6 {[%emt 0:00:17]} 32. b4 {[%emt 0:00:23]} Na4 {[%emt 0:02:19]} 33. Kh2 {[%emt 0:00:53]} Rc8 {[%emt 0:00:53]} 34. Kh1 {[%emt 0:01:02]} Qe7 {[%emt 0:03:52]} 35. Kh2 {[%emt 0:00:46]} Nc3 {[%emt 0:01:10]} 36. Nxc3 {[%emt 0:00:04]} Rxc3 {[%emt 0:00:07]} 37. Ra1 {[%emt 0:00:05]} Rhc8 {[%emt 0:00:55]} 38. Qe2 {[%emt 0:00:48]} Bc4 {[%emt 0:01:12]} 39. Qe1 {[%emt 0:00:33]} Qc7 {[%emt 0:03:47]} 40. Kh1 {[%emt 0:00:19]} Bxd3 {[%emt 0:01:34]} 41. cxd3 {[%emt 0:00:16]} Rb3 {[%emt 0:01:25]} 42. Ra2 {[%emt 0:02:14]} Qc3 {[%emt 0:00:46]} 43. Nd2 {[%emt 0:00:55]} Rxa3 {[%emt 0:03:36]} 44. Rxa3 {[%emt 0:00:23]} Qxa3 {[%emt 0:00:14]} 45. Rb1 {[%emt 0:00:44]} Qxd3 {[%emt 0:00:39]} 46. Nb3 {[%emt 0:00:39]} Be7 {[%emt 0:01:15]} 47. Rb2 {[%emt 0:00:41]} Rc3 {[%emt 0:00:59]} 48. Nc1 {[%emt 0:00:08]} Qc4 {[%emt 0:00:33]} 49. Na2 {[%emt 0:00:24]} Re3 {[%emt 0:01:41]} 50. Qd2 {[%emt 0:00:17]} Qf1+ {[%emt 0:00:51]} 51. Kh2 {[%emt 0:00:04]} Re1 {[%emt 0:00:23]} 52. Qxe1 {[%emt 0:00:32]} Qxe1 {[%emt 0:00:07]} 53. Rb3 {[%emt 0:01:00]} Bg5 {[%emt 0:00:21]} 54. f4 {[%emt 0:00:36]} Bxf4+ {[%emt 0:00:09]} 55. g3 {[%emt 0:00:03]} Bxg3+ {[%emt 0:00:37]} 56. Rxg3 {[%emt 0:00:07]} hxg3+ {[%emt 0:00:10]} 57. Kg2 {[%emt 0:00:02]} Qf2+ {[%emt 0:00:09]} 58. Kh1 {[%emt 0:00:13]} g2+ {[%emt 0:08:04]} 59. Kh2 {[%emt 0:03:08]} 0-1

[Event "FIDE WCCC Open-10 2024"]
[Site "Montesilvano"]
[Date "2024.11.24"]
[Round "9.18"]
[White "Youn, Laeho"]
[Black "Golya, David"]
[Result "1-0"]
[Annotator "NA RC"]
[ECO "B22"]
[WhiteElo "1520"]
[BlackElo "1672"]
[PlyCount "81"]
[EventDate "2024.11.18"]
[EventType "swiss"]
[EventCountry "ITA"]
[SourceTitle "playchess.com"]
[Source "ChessBase"]
[SourceQuality "1"]
[TimeControl "5400+30"]

1. e4 {[%emt 0:00:11]} c5 {[%emt 0:00:03]} 2. Nf3 {[%emt 0:00:18]} Nc6 {[%emt 0:00:05]} 3. c3 {[%emt 0:00:13]} d5 {[%emt 0:00:21]} 4. exd5 {[%emt 0:00:06]} Qxd5 {[%emt 0:00:05]} 5. d4 {[%emt 0:00:05]} cxd4 {[%emt 0:00:07]} 6. cxd4 {[%emt 0:00:16]} e5 {[%emt 0:00:08]} 7. Nc3 {[%emt 0:00:27]} Bb4 {[%emt 0:00:10]} 8. Be3 {[%emt 0:01:32]} Bg4 {[%emt 0:06:35]} 9. Be2 {[%emt 0:01:12]} O-O-O {[%emt 0:04:22]} 10. O-O {[%emt 0:01:16]} Bxc3 {[%emt 0:01:47]} 11. bxc3 {[%emt 0:00:12]} e4 {[%emt 0:00:32]} 12. Ne5 {[%emt 0:00:49]} Nxe5 {[%emt 0:11:33]} 13. Bxg4+ {[%emt 0:02:27]} Nd7 {[%emt 0:00:28]} 14. c4 {[%emt 0:00:17]} Qd6 {[%emt 0:01:02]} 15. c5 {[%emt 0:00:28]} Qf8 {[%emt 0:18:20]} 16. d5 {[%emt 0:00:22]} f5 {[%emt 0:05:22]} 17. Bh3 {[%emt 0:01:15]} Ne7 {[%emt 0:02:56]} 18. c6 {[%emt 0:00:45]} bxc6 {[%emt 0:00:22]} 19. dxc6 {[%emt 0:01:06]} Nxc6 {[%emt 0:01:08]} 20. Rc1 {[%emt 0:00:09]} Nde5 {[%emt 0:14:20]} 21. Qa4 {[%emt 0:00:54]} Kd7 {[%emt 0:11:53]} 22. Bg5 {[%emt 0:04:08]} Rc8 {[%emt 0:01:13]} 23. Qxe4 {[%emt 0:01:34]} g6 {[%emt 0:03:07]} 24. Rfd1+ {[%emt 0:01:09]} Ke8 {[%emt 0:00:10]} 25. Rxc6 {[%emt 0:02:09]} fxe4 {[%emt 0:00:30]} 26. Rxc8+ {[%emt 0:00:12]} Kf7 {[%emt 0:00:38]} 27. Rxf8+ {[%emt 0:00:09]} Rxf8 {[%emt 0:00:10]} 28. Rd8 {[%emt 0:00:30]} Rxd8 {[%emt 0:02:49]} 29. Bxd8 {[%emt 0:00:06]} Nc6 {[%emt 0:00:42]} 30. Bg5 {[%emt 0:00:30]} Nb4 {[%emt 0:00:19]} 31. Bd2 {[%emt 0:00:26]} Nd5 {[%emt 0:01:22]} 32. g3 {[%emt 0:00:21]} Kf6 {[%emt 0:00:08]} 33. Kf1 {[%emt 0:00:38]} Ke5 {[%emt 0:00:47]} 34. Ke2 {[%emt 0:00:16]} Nb6 {[%emt 0:00:51]} 35. Be3 {[%emt 0:00:18]} Kd5 {[%emt 0:00:52]} 36. Bxb6 {[%emt 0:00:11]} axb6 {[%emt 0:00:04]} 37. Ke3 {[%emt 0:00:07]} g5 {[%emt 0:00:16]} 38. Bg2 {[%emt 0:00:29]} h6 {[%emt 0:00:10]} 39. Bxe4+ {[%emt 0:00:08]} Kc4 {[%emt 0:00:30]} 40. Bh7 {[%emt 0:00:15]} b5 {[%emt 0:00:28]} 41. Ke4 {[%emt 0:00:18]} 1-0

[Event "FIDE WCCC Open-10 2024"]
[Site "Montesilvano"]
[Date "2024.11.24"]
[Round "9.20"]
[White "Tugsbilguun, Davganamdag"]
[Black "Nguyen Truong An Khang"]
[Result "1-0"]
[Annotator "NA RC"]
[ECO "B90"]
[WhiteElo "1660"]
[BlackElo "1836"]
[PlyCount "22"]
[EventDate "2024.11.18"]
[EventType "swiss"]
[EventCountry "ITA"]
[SourceTitle "playchess.com"]
[Source "ChessBase"]
[SourceQuality "1"]
[TimeControl "5400+30"]

1. e4 {[%emt 1:31:00]} c5 {[%emt 1:31:00]} 2. Nf3 {[%emt 0:00:30]} d6 3. d4 cxd4 4. Nxd4 Nf6 {[%emt 0:01:30]} 5. Nc3 a6 6. f3 {[%emt 0:02:00]} e5 7. Nb3 Be6 {[%emt 0:01:30]} 8. Be3 Nbd7 {[%emt 0:00:30]} 9. Qd2 b5 {[%emt 0:00:30]} 10. O-O-O b4 {[%emt 0:00:30]} 11. g4 {[%emt 0:02:30]} Be7 {[%emt 0:00:30]} 1-0

[Event "FIDE WCCC Open-10 2024"]
[Site "Montesilvano"]
[Date "2024.11.24"]
[Round "9.39"]
[White "Czech, Emil"]
[Black "Guntaka, Aayansh"]
[Result "0-1"]
[Annotator "NA RC"]
[ECO "B23"]
[WhiteElo "1608"]
[BlackElo "1798"]
[PlyCount "78"]
[EventDate "2024.11.18"]
[EventType "swiss"]
[EventCountry "ITA"]
[SourceTitle "playchess.com"]
[Source "ChessBase"]
[SourceQuality "1"]
[TimeControl "5400+30"]

1. e4 {[%emt 0:00:02]} c5 {[%emt 0:00:04]} 2. Nc3 {[%emt 0:00:05]} g6 {[%emt 0:00:52]} 3. f4 {[%emt 0:00:27]} Nc6 {[%emt 0:00:06]} 4. Nf3 {[%emt 0:00:11]} Bg7 {[%emt 0:00:11]} 5. a4 {[%emt 0:00:12]} e6 {[%emt 0:01:32]} 6. e5 {[%emt 0:00:46]} d6 {[%emt 0:00:42]} 7. Bb5 {[%emt 0:05:57]} d5 {[%emt 0:02:23]} 8. O-O {[%emt 0:04:37]} Nge7 {[%emt 0:00:17]} 9. d4 {[%emt 0:12:14]} cxd4 {[%emt 0:00:30]} 10. Nxd4 {[%emt 0:00:08]} a6 {[%emt 0:00:06]} 11. Bxc6+ {[%emt 0:00:17]} bxc6 {[%emt 0:00:32]} 12. a5 {[%emt 0:01:12]} c5 {[%emt 0:05:50]} 13. Nb3 {[%emt 0:00:22]} c4 {[%emt 0:00:49]} 14. Nd4 {[%emt 0:01:38]} Rb8 {[%emt 0:01:06]} 15. Qe1 {[%emt 0:02:50]} Bd7 {[%emt 0:00:34]} 16. Rf3 {[%emt 0:09:57]} Nc6 {[%emt 0:01:03]} 17. Nxc6 {[%emt 0:00:29]} Bxc6 {[%emt 0:02:45]} 18. Rg3 {[%emt 0:01:52]} Bf8 {[%emt 0:02:03]} 19. Nd1 {[%emt 0:14:25]} Be7 {[%emt 0:03:14]} 20. Rh3 {[%emt 0:00:13]} d4 {[%emt 0:00:46]} 21. Qg3 {[%emt 0:08:44]} Be4 {[%emt 0:03:14]} 22. c3 {[%emt 0:15:01]} Bf5 {[%emt 0:00:09]} 23. Rh6 {[%emt 0:00:22]} Kf8 {[%emt 0:00:13]} 24. cxd4 {[%emt 0:01:59]} Kg7 {[%emt 0:01:28]} 25. Rh5 {[%emt 0:00:50]} h6 {[%emt 0:00:30]} 26. Rxf5 {[%emt 0:01:38]} exf5 {[%emt 0:01:08]} 27. Qf2 {[%emt 0:02:39]} Rb5 {[%emt 0:04:37]} 28. Bd2 {[%emt 0:00:14]} Rd5 {[%emt 0:00:16]} 29. Be3 {[%emt 0:01:04]} Bb4 {[%emt 0:01:11]} 30. Qc2 {[%emt 0:01:34]} Rxa5 {[%emt 0:01:57]} 31. Rxa5 {[%emt 0:00:59]} Qxa5 {[%emt 0:01:28]} 32. Qxc4 {[%emt 0:00:31]} Bd2 {[%emt 0:01:49]} 33. Qc6 {[%emt 0:02:18]} Qa1 {[%emt 0:01:04]} 34. Qf6+ {[%emt 0:02:22]} Kg8 {[%emt 0:00:26]} 35. Kf2 {[%emt 0:02:35]} Qxd1 {[%emt 0:00:13]} 36. Bxd2 {[%emt 0:00:51]} Qxd2+ {[%emt 0:00:08]} 37. Kf3 {[%emt 0:00:46]} g5 {[%emt 0:01:19]} 38. Qd8+ {[%emt 0:01:35]} Kh7 {[%emt 0:00:06]} 39. Qd7 {[%emt 0:00:35]} g4+ {[%emt 0:00:07]} 0-1

[Event "FIDE WCCC Open-10 2024"]
[Site "Montesilvano"]
[Date "2024.11.24"]
[Round "9.41"]
[White "Nguyen, Huynh Minh Huy"]
[Black "Vedrickas, Vytis"]
[Result "1-0"]
[Annotator "TA"]
[ECO "D93"]
[WhiteElo "2423"]
[BlackElo "1642"]
[PlyCount "61"]
[EventDate "2024.11.18"]
[EventType "swiss"]
[EventCountry "ITA"]
[SourceTitle "playchess.com"]
[Source "ChessBase"]
[SourceQuality "1"]
[TimeControl "5400+30"]

{[%evp 26,61,17,12,352,358,638,611,616,595,737,732,1131,1117,1102,1095,1263,1253,1259,1253,1353,1335,1450,1379,1886,1929,2141,2083,29987,29988,29988,29989,29989,29990,29997,29998,29998,29999]} 1. d4 {[%emt 0:00:03]} Nf6 {[%emt 0:00:42]} 2. c4 {[%emt 0:00:06]} g6 {[%emt 0:00:13]} 3. Nf3 {[%emt 0:00:55]} Bg7 {[%emt 0:02:53]} 4. Nc3 {[%emt 0:00:14]} d5 {[%emt 0:00:15]} 5. Bf4 {[%emt 0:00:11]} O-O {[%emt 0:00:23]} 6. e3 {[%emt 0:00:09]} c5 {[%emt 0:00:19]} 7. dxc5 {[%emt 0:00:10]} Qa5 {[%emt 0:01:50]} 8. Rc1 {[%emt 0:00:15]} dxc4 {[%emt 0:00:15]} 9. Bxc4 {[%emt 0:00:12]} Qxc5 {[%emt 0:00:19]} 10. Bb3 {[%emt 0:00:12]} Qa5 {[%emt 0:00:25]} 11. O-O {[%emt 0:00:42]} Nc6 {[%emt 0:00:32]} 12. h3 {[%emt 0:01:56]} Bf5 {[%emt 0:00:18]} 13. Qe2 {[%emt 0:00:43]} Ne4 {[%emt 0:01:44]} 14. Nd5 {[%emt 0:08:08] [#] aiming for Bc7.} Rfd8 $2 {[%emt 0:14:28][%mdl 8192]} (14... e5 $1 $11 {and Black is okay.} 15. Rxc6 bxc6 16. Ne7+ Kh8 17. Nxc6 Qb6 18. Ncxe5 (18. Nfxe5 $2 f6 $17) 18... Be6) 15. Bc7 $18 {[%emt 0:02:30]} b6 {[%emt 0:02:41]} (15... Qxd5 16. Bxd5 Rxd5) 16. Bxd8 {[%emt 0:02:15]} Nxd8 {[%emt 0:00:30][%cal Bc6d8,Bd8e6,Be6c5,Bc5e4,Be4f2,Bf2d1][%mdl 32] White is clearly winning.} 17. Nxe7+ {[%emt 0:00:23]} Kh8 {[%emt 0:00:24]} 18. Rfd1 {[%emt 0:00:54]} Ne6 {[%emt 0:07:29]} 19. Nc6 {[%emt 0:01:01]} Qc5 {[%emt 0:03:23]} 20. Rxc5 {[%emt 0:00:26]} N6xc5 {[%emt 0:00:13]} 21. Bxf7 {[%emt 0:00:45]} Rf8 {[%emt 0:00:59]} 22. Nfe5 {[%emt 0:01:47]} Ng5 {[%emt 0:03:30]} 23. Qc4 {[%emt 0:02:16]} Bf6 {[%emt 0:06:17]} 24. Bd5 {[%emt 0:02:42]} Nge4 {[%emt 0:04:47]} 25. Bxe4 {[%emt 0:00:43]} Nxe4 {[%emt 0:01:59]} 26. g4 {[%emt 0:00:45][%cal Bg2g4,Bg4f5][%mdl 32]} Bxe5 {[%emt 0:01:19]} 27. Nxe5 {[%emt 0:00:15][%cal Bc6e5,Be5f7,Bf7h6][%mdl 32] White mates.} Nxf2 {[%emt 0:00:11]} 28. gxf5 {[%emt 0:00:46]} Nxd1 {[%emt 0:00:10]} 29. Qd4 {[%emt 0:00:19]} Re8 {[%emt 0:01:58]} 30. Nf7+ {[%emt 0:00:32]} Kg8 {[%emt 0:00:18]} 31. Nh6+ {[%emt 0:00:08] White took control after the opening.   Weighted Error Value: White=0.03 (flawless) /Black=2.84.  Mistake:       	---       	Black=1      Inaccurate:     	---       	Black=1      OK:         	White=1     	---        Best:        	White=1     	---} 1-0